[Event "Late-Titled-Tuesday-Blitz-September-19-2023"]
[Site "Chess.com"]
[Date "2023.09.19"]
[Round "5"]
[White "IvanRadivojevic"]
[Black "Siemba"]
[Result "1-0"]
[WhiteElo "2517"]
[BlackElo "2592"]
[TimeControl "180+1"]
[EndTime "14:55:48 PDT"]
[Termination "IvanRadivojevic won by checkmate"]

1. e4 {[%clk 0:03:00.9]} 1... e5 {[%clk 0:02:47.3]} 2. Nf3 {[%clk 0:02:55.5]}
2... Nc6 {[%clk 0:02:47.5]} 3. Bc4 {[%clk 0:02:56]} 3... Nf6 {[%clk 0:02:47.3]}
4. d3 {[%clk 0:02:56.1]} 4... Bc5 {[%clk 0:02:45.2]} 5. c3 {[%clk 0:02:53.8]}
5... O-O {[%clk 0:02:43.8]} 6. O-O {[%clk 0:02:53]} 6... a6 {[%clk 0:02:42.4]}
7. b4 {[%clk 0:02:50.1]} 7... Ba7 {[%clk 0:02:41.4]} 8. a4 {[%clk 0:02:49.1]}
8... d6 {[%clk 0:02:40]} 9. Bb3 {[%clk 0:02:47.6]} 9... Ne7 {[%clk 0:02:39.7]}
10. Be3 {[%clk 0:02:45]} 10... Ng6 {[%clk 0:02:33.2]} 11. Bxa7 {[%clk
0:02:44.5]} 11... Rxa7 {[%clk 0:02:34.1]} 12. d4 {[%clk 0:02:31.6]} 12... Nxe4
{[%clk 0:02:28.6]} 13. Re1 {[%clk 0:02:29.3]} 13... Bf5 {[%clk 0:02:06.5]} 14.
Bc2 {[%clk 0:01:56.6]} 14... d5 {[%clk 0:01:40.3]} 15. dxe5 {[%clk 0:01:53.4]}
15... Bg4 {[%clk 0:01:31.5]} 16. Bxe4 {[%clk 0:01:32]} 16... dxe4 {[%clk
0:01:23.2]} 17. Qxd8 {[%clk 0:01:31.7]} 17... Rxd8 {[%clk 0:01:23.4]} 18. Ng5
{[%clk 0:00:46.4]} 18... e3 {[%clk 0:01:20.8]} 19. Na3 {[%clk 0:00:37.9]} 19...
exf2+ {[%clk 0:01:12.6]} 20. Kxf2 {[%clk 0:00:38.8]} 20... Rd2+ {[%clk
0:01:06.2]} 21. Kg3 {[%clk 0:00:38.3]} 21... Bh5 {[%clk 0:01:06.1]} 22. Nc4
{[%clk 0:00:34.5]} 22... Rd3+ {[%clk 0:01:06]} 23. Re3 {[%clk 0:00:34.1]} 23...
Rxe3+ {[%clk 0:01:05.2]} 24. Nxe3 {[%clk 0:00:35]} 24... Nxe5 {[%clk 0:01:04.5]}
25. Nd5 {[%clk 0:00:19.9]} 25... f6 {[%clk 0:00:56.6]} 26. Nh3 {[%clk
0:00:16.1]} 26... b6 {[%clk 0:00:53.2]} 27. Nhf4 {[%clk 0:00:13.6]} 27... Bf7
{[%clk 0:00:52.8]} 28. Rd1 {[%clk 0:00:09.3]} 28... Bxd5 {[%clk 0:00:50.8]} 29.
Rxd5 {[%clk 0:00:08.7]} 29... Kf7 {[%clk 0:00:50.2]} 30. Rd8 {[%clk 0:00:07.4]}
30... c6 {[%clk 0:00:48.4]} 31. Rb8 {[%clk 0:00:07.1]} 31... b5 {[%clk
0:00:48.5]} 32. a5 {[%clk 0:00:06.6]} 32... Rd7 {[%clk 0:00:46.4]} 33. Rb6
{[%clk 0:00:06.7]} 33... g5 {[%clk 0:00:46]} 34. Ne2 {[%clk 0:00:05.7]} 34...
Rd3+ {[%clk 0:00:45.8]} 35. Kf2 {[%clk 0:00:06.1]} 35... Ng4+ {[%clk 0:00:44.2]}
36. Ke1 {[%clk 0:00:06.7]} 36... Ne3 {[%clk 0:00:43.9]} 37. Rxa6 {[%clk
0:00:05.5]} 37... Nxg2+ {[%clk 0:00:42.9]} 38. Kf2 {[%clk 0:00:05.5]} 38... Nh4
{[%clk 0:00:41.1]} 39. Rxc6 {[%clk 0:00:05.9]} 39... Rf3+ {[%clk 0:00:38.4]} 40.
Ke1 {[%clk 0:00:04.2]} 40... Ng2+ {[%clk 0:00:37.5]} 41. Kd2 {[%clk 0:00:04.4]}
41... Rf2 {[%clk 0:00:38.2]} 42. Kd3 {[%clk 0:00:03.7]} 42... Rf3+ {[%clk
0:00:35.9]} 43. Kd2 {[%clk 0:00:03]} 43... Rf1 {[%clk 0:00:27.6]} 44. Nd4 {[%clk
0:00:02.6]} 44... Ra1 {[%clk 0:00:25.2]} 45. Nxb5 {[%clk 0:00:02.8]} 45... h5
{[%clk 0:00:23.9]} 46. Nd6+ {[%clk 0:00:02.6]} 46... Kg6 {[%clk 0:00:23.7]} 47.
Nc4 {[%clk 0:00:03.5]} 47... g4 {[%clk 0:00:23.1]} 48. a6 {[%clk 0:00:03.5]}
48... h4 {[%clk 0:00:22.5]} 49. Na5 {[%clk 0:00:03.5]} 49... g3 {[%clk
0:00:20.2]} 50. hxg3 {[%clk 0:00:04.4]} 50... h3 {[%clk 0:00:17.7]} 51. a7
{[%clk 0:00:05]} 51... h2 {[%clk 0:00:12.1]} 52. a8=Q {[%clk 0:00:05]} 52...
Ra2+ {[%clk 0:00:10.4]} 53. Kd3 {[%clk 0:00:03.8]} 53... Ne1+ {[%clk 0:00:11]}
54. Kc4 {[%clk 0:00:04]} 54... h1=Q {[%clk 0:00:09]} 55. Qg8+ {[%clk 0:00:04.6]}
55... Kf5 {[%clk 0:00:07.9]} 56. Rc5+ {[%clk 0:00:05]} 56... Ke4 {[%clk
0:00:06.5]} 57. Qd5+ {[%clk 0:00:05.1]} 57... Ke3 {[%clk 0:00:06.8]} 58. Qd4+
{[%clk 0:00:05.2]} 58... Ke2 {[%clk 0:00:06.8]} 59. Rf5 {[%clk 0:00:05.1]} 59...
Nf3 {[%clk 0:00:03.1]} 60. Qe4+ {[%clk 0:00:04.7]} 60... Kf2 {[%clk 0:00:03.8]}
61. Kb5 {[%clk 0:00:04.1]} 61... Qf1+ {[%clk 0:00:04.1]} 62. Nc4 {[%clk
0:00:05]} 62... Re2 {[%clk 0:00:04.6]} 63. Rxf3+ {[%clk 0:00:04.8]} 63... Ke1
{[%clk 0:00:05.2]} 64. Rxf1+ {[%clk 0:00:05.4]} 64... Kxf1 {[%clk 0:00:06.1]}
65. Qf3+ {[%clk 0:00:05.7]} 65... Rf2 {[%clk 0:00:06.5]} 66. Qd1+ {[%clk
0:00:06.1]} 66... Kg2 {[%clk 0:00:06.8]} 67. g4 {[%clk 0:00:07]} 67... Rf4
{[%clk 0:00:05.9]} 68. Qd5+ {[%clk 0:00:07.9]} 68... Kg3 {[%clk 0:00:06]} 69.
Nd6 {[%clk 0:00:08.6]} 69... Rxg4 {[%clk 0:00:06.1]} 70. Nf5+ {[%clk 0:00:09.3]}
70... Kf4 {[%clk 0:00:06.4]} 71. Nd4 {[%clk 0:00:10.2]} 71... Rg5 {[%clk
0:00:06.8]} 72. Kc6 {[%clk 0:00:10.1]} 72... Rg6 {[%clk 0:00:05.1]} 73. Qd6+
{[%clk 0:00:10]} 73... Kg5 {[%clk 0:00:03.7]} 74. b5 {[%clk 0:00:09.3]} 74...
Rg7 {[%clk 0:00:02.5]} 75. Ne6+ {[%clk 0:00:09.3]} 75... Kg6 {[%clk 0:00:02.3]}
76. Nxg7 {[%clk 0:00:10.2]} 76... Kxg7 {[%clk 0:00:02.4]} 77. Qh2 {[%clk
0:00:11.1]} 77... f5 {[%clk 0:00:03.1]} 78. Qf2 {[%clk 0:00:11.8]} 78... Kf6
{[%clk 0:00:03.3]} 79. b6 {[%clk 0:00:12.7]} 79... Ke5 {[%clk 0:00:03.5]} 80. b7
{[%clk 0:00:13.6]} 80... f4 {[%clk 0:00:04.2]} 81. b8=Q+ {[%clk 0:00:14.5]}
81... Ke4 {[%clk 0:00:04.9]} 82. Qbxf4+ {[%clk 0:00:14.9]} 82... Kd3 {[%clk
0:00:05.6]} 83. Q2d2# {[%clk 0:00:14.9]} 1-0

[Event "Late-Titled-Tuesday-Blitz-September-19-2023"]
[Site "Chess.com"]
[Date "2023.09.19"]
[Round "5"]
[White "ameetghasi100"]
[Black "reevecanada"]
[Result "1/2-1/2"]
[WhiteElo "2693"]
[BlackElo "2523"]
[TimeControl "180+1"]
[EndTime "14:55:54 PDT"]
[Termination "Game drawn by repetition"]

1. c4 {[%clk 0:03:00.9]} 1... c6 {[%clk 0:02:57.9]} 2. e3 {[%clk 0:03:00.2]}
2... d5 {[%clk 0:02:58.4]} 3. Nf3 {[%clk 0:03:00.5]} 3... Nf6 {[%clk 0:02:58.2]}
4. b3 {[%clk 0:03:00.7]} 4... e6 {[%clk 0:02:58.6]} 5. Bb2 {[%clk 0:03:01.3]}
5... Bd6 {[%clk 0:02:59.4]} 6. g3 {[%clk 0:02:59.7]} 6... O-O {[%clk 0:03:00]}
7. Bg2 {[%clk 0:03:00.3]} 7... Nbd7 {[%clk 0:03:00.6]} 8. O-O {[%clk 0:03:00.6]}
8... e5 {[%clk 0:03:01.2]} 9. d3 {[%clk 0:02:49]} 9... a6 {[%clk 0:02:59.2]} 10.
Nc3 {[%clk 0:02:48.6]} 10... b6 {[%clk 0:02:54.1]} 11. cxd5 {[%clk 0:02:35.9]}
11... cxd5 {[%clk 0:02:51.6]} 12. Nh4 {[%clk 0:02:30.4]} 12... Bb7 {[%clk
0:02:47.6]} 13. Nf5 {[%clk 0:02:30.1]} 13... Bc7 {[%clk 0:02:47.1]} 14. g4
{[%clk 0:02:24]} 14... g6 {[%clk 0:02:46.2]} 15. Nh6+ {[%clk 0:02:22.6]} 15...
Kg7 {[%clk 0:02:45.6]} 16. g5 {[%clk 0:02:23.5]} 16... Ng8 {[%clk 0:02:44.5]}
17. Nxg8 {[%clk 0:02:12.1]} 17... Qxg5 {[%clk 0:02:43.8]} 18. f4 {[%clk
0:01:44.7]} 18... Qd8 {[%clk 0:02:25.1]} 19. Nh6 {[%clk 0:01:28.3]} 19... Kxh6
{[%clk 0:02:24.9]} 20. Nxd5 {[%clk 0:01:28.3]} 20... Kg7 {[%clk 0:02:17.4]} 21.
Rc1 {[%clk 0:01:26.4]} 21... Bd6 {[%clk 0:02:14.9]} 22. fxe5 {[%clk 0:01:04.5]}
22... Bxe5 {[%clk 0:02:08.5]} 23. d4 {[%clk 0:00:58.8]} 23... Bd6 {[%clk
0:02:08.3]} 24. Nf4 {[%clk 0:00:43]} 24... Qg5 {[%clk 0:02:00.4]} 25. Qd2 {[%clk
0:00:25.9]} 25... Rfe8 {[%clk 0:01:55.7]} 26. Rce1 {[%clk 0:00:20.5]} 26... Nf6
{[%clk 0:01:50.3]} 27. d5 {[%clk 0:00:17.9]} 27... Be5 {[%clk 0:01:46.9]} 28.
Bxe5 {[%clk 0:00:18]} 28... Rxe5 {[%clk 0:01:46.5]} 29. e4 {[%clk 0:00:18.9]}
29... Rae8 {[%clk 0:01:43.9]} 30. Qd4 {[%clk 0:00:17.7]} 30... Kg8 {[%clk
0:01:38.4]} 31. Nd3 {[%clk 0:00:17.5]} 31... Rxe4 {[%clk 0:01:23.4]} 32. Qxf6
{[%clk 0:00:17]} 32... Qxf6 {[%clk 0:01:22.8]} 33. Rxf6 {[%clk 0:00:17.7]} 33...
Rxe1+ {[%clk 0:01:22.2]} 34. Nxe1 {[%clk 0:00:18.4]} 34... Rxe1+ {[%clk
0:01:22.4]} 35. Kf2 {[%clk 0:00:18.2]} 35... Ra1 {[%clk 0:00:44.1]} 36. a4
{[%clk 0:00:18]} 36... Ra2+ {[%clk 0:00:40.1]} 37. Kg3 {[%clk 0:00:17.7]} 37...
Rxg2+ {[%clk 0:00:37.9]} 38. Kxg2 {[%clk 0:00:18]} 38... Bxd5+ {[%clk
0:00:38.6]} 39. Kg3 {[%clk 0:00:16.5]} 39... Bxb3 {[%clk 0:00:39.1]} 40. Rxb6
{[%clk 0:00:13.7]} 40... Bxa4 {[%clk 0:00:38.9]} 41. Rxa6 {[%clk 0:00:14.3]}
41... Bb3 {[%clk 0:00:38.5]} 42. Kf4 {[%clk 0:00:13.6]} 42... Kg7 {[%clk
0:00:36.5]} 43. Ke5 {[%clk 0:00:11.6]} 43... Be6 {[%clk 0:00:36.8]} 44. Rb6
{[%clk 0:00:11.7]} 44... g5 {[%clk 0:00:35.8]} 45. Rb8 {[%clk 0:00:09.2]} 45...
h6 {[%clk 0:00:35.9]} 46. Ke4 {[%clk 0:00:09.6]} 46... Bg4 {[%clk 0:00:35.3]}
47. Ke5 {[%clk 0:00:09.1]} 47... f6+ {[%clk 0:00:35.2]} 48. Ke4 {[%clk
0:00:07.9]} 48... f5+ {[%clk 0:00:35.6]} 49. Ke5 {[%clk 0:00:07.5]} 49... f4
{[%clk 0:00:35.8]} 50. Rb6 {[%clk 0:00:06.3]} 50... Be2 {[%clk 0:00:26.8]} 51.
Rf6 {[%clk 0:00:03.4]} 51... f3 {[%clk 0:00:27.2]} 52. Rf5 {[%clk 0:00:03.9]}
52... Kg6 {[%clk 0:00:26.3]} 53. Rf6+ {[%clk 0:00:04.1]} 53... Kh5 {[%clk
0:00:26.6]} 54. Ke4 {[%clk 0:00:04.3]} 54... g4 {[%clk 0:00:26.1]} 55. Ke3
{[%clk 0:00:02.8]} 55... Kg5 {[%clk 0:00:26.4]} 56. Rf8 {[%clk 0:00:03.2]} 56...
h5 {[%clk 0:00:26.4]} 57. Rg8+ {[%clk 0:00:02.9]} 57... Kh4 {[%clk 0:00:26.4]}
58. Kf2 {[%clk 0:00:03.3]} 58... Kh3 {[%clk 0:00:25.4]} 59. Rh8 {[%clk
0:00:03.8]} 59... h4 {[%clk 0:00:25.1]} 60. Rh6 {[%clk 0:00:04]} 60... Bd3
{[%clk 0:00:20.3]} 61. Rh8 {[%clk 0:00:04.3]} 61... Bf5 {[%clk 0:00:19.5]} 62.
Rh6 {[%clk 0:00:04.5]} 62... Be4 {[%clk 0:00:19.7]} 63. Rh8 {[%clk 0:00:04.9]}
63... Bc2 {[%clk 0:00:15.9]} 64. Rh6 {[%clk 0:00:05.3]} 64... Bd3 {[%clk
0:00:13.5]} 65. Rh5 {[%clk 0:00:05.7]} 65... Be2 {[%clk 0:00:14.2]} 66. Rh8
{[%clk 0:00:06]} 66... Bc4 {[%clk 0:00:13.6]} 67. Rh6 {[%clk 0:00:05.8]} 67...
Bf7 {[%clk 0:00:13.4]} 68. Rh8 {[%clk 0:00:05.7]} 68... Bg6 {[%clk 0:00:14]} 69.
Rh6 {[%clk 0:00:05.8]} 69... Bb1 {[%clk 0:00:14.6]} 70. Rh8 {[%clk 0:00:06.1]}
70... Bc2 {[%clk 0:00:14.9]} 71. Rh6 {[%clk 0:00:06.5]} 71... Ba4 {[%clk
0:00:14.9]} 72. Rh8 {[%clk 0:00:07.1]} 72... Bd1 {[%clk 0:00:15.6]} 73. Rh6
{[%clk 0:00:07.4]} 73... Be2 {[%clk 0:00:16.3]} 74. Rh8 {[%clk 0:00:07.8]} 74...
Bb5 {[%clk 0:00:16.3]} 75. Rh6 {[%clk 0:00:08.4]} 75... Bd7 {[%clk 0:00:14.5]}
76. Rh5 {[%clk 0:00:08.7]} 76... Be6 {[%clk 0:00:07.2]} 77. Rh8 {[%clk
0:00:08.7]} 77... Bf7 {[%clk 0:00:06.8]} 78. Rh7 {[%clk 0:00:08.5]} 78... Bg6
{[%clk 0:00:07]} 79. Rh6 {[%clk 0:00:09.1]} 79... Bf5 {[%clk 0:00:07.4]} 80. Rh8
{[%clk 0:00:09.1]} 80... Bg6 {[%clk 0:00:06.7]} 81. Rh6 {[%clk 0:00:08.7]}
1/2-1/2

[Event "Late-Titled-Tuesday-Blitz-September-19-2023"]
[Site "Chess.com"]
[Date "2023.09.19"]
[Round "5"]
[White "Journey_to_GrandMaster_YT"]
[Black "Defend1r"]
[Result "0-1"]
[WhiteElo "2654"]
[BlackElo "2512"]
[TimeControl "180+1"]
[EndTime "14:56:22 PDT"]
[Termination "Defend1r won by resignation"]

1. d4 {[%clk 0:03:00]} 1... Nf6 {[%clk 0:02:53.4]} 2. Nf3 {[%clk 0:02:59.9]}
2... e6 {[%clk 0:02:51.4]} 3. c4 {[%clk 0:02:59.6]} 3... d5 {[%clk 0:02:50.4]}
4. Nc3 {[%clk 0:02:59.2]} 4... Be7 {[%clk 0:02:36.7]} 5. Bg5 {[%clk 0:02:58.2]}
5... Nbd7 {[%clk 0:02:24.8]} 6. e3 {[%clk 0:02:57.9]} 6... O-O {[%clk
0:02:24.4]} 7. Qc2 {[%clk 0:02:58.1]} 7... h6 {[%clk 0:02:21.6]} 8. Bh4 {[%clk
0:02:58]} 8... a6 {[%clk 0:02:16.6]} 9. cxd5 {[%clk 0:02:54.4]} 9... exd5 {[%clk
0:02:13.9]} 10. Bd3 {[%clk 0:02:54.6]} 10... c6 {[%clk 0:02:14.4]} 11. O-O
{[%clk 0:02:53.8]} 11... Re8 {[%clk 0:02:14.5]} 12. Rab1 {[%clk 0:02:52.7]}
12... Ne4 {[%clk 0:02:12.9]} 13. Bxe7 {[%clk 0:02:51.7]} 13... Qxe7 {[%clk
0:02:13]} 14. Bxe4 {[%clk 0:02:50.5]} 14... dxe4 {[%clk 0:02:12.7]} 15. Nd2
{[%clk 0:02:51.1]} 15... Nf6 {[%clk 0:02:12.4]} 16. b4 {[%clk 0:02:50.2]} 16...
Bf5 {[%clk 0:01:54.7]} 17. Nc4 {[%clk 0:02:46]} 17... Rad8 {[%clk 0:01:52.6]}
18. Ne5 {[%clk 0:02:40.9]} 18... Nd7 {[%clk 0:01:47.1]} 19. Nxd7 {[%clk
0:02:37.7]} 19... Bxd7 {[%clk 0:01:38.5]} 20. Ne2 {[%clk 0:02:30.9]} 20... Qh4
{[%clk 0:01:35.9]} 21. Ng3 {[%clk 0:02:14]} 21... Be6 {[%clk 0:01:18.4]} 22. a4
{[%clk 0:02:11.6]} 22... Bd5 {[%clk 0:01:14.1]} 23. b5 {[%clk 0:02:10.5]} 23...
axb5 {[%clk 0:01:09.8]} 24. axb5 {[%clk 0:02:10.2]} 24... Qg5 {[%clk 0:00:42.1]}
25. bxc6 {[%clk 0:02:06.6]} 25... bxc6 {[%clk 0:00:41.8]} 26. Qe2 {[%clk
0:01:57.3]} 26... Rd6 {[%clk 0:00:33.3]} 27. Qh5 {[%clk 0:01:54.3]} 27... Qd8
{[%clk 0:00:29.5]} 28. Ne2 {[%clk 0:01:31.7]} 28... Rg6 {[%clk 0:00:29]} 29. Nf4
{[%clk 0:01:31.2]} 29... Rg5 {[%clk 0:00:29.3]} 30. Qh3 {[%clk 0:01:27]} 30...
Qd6 {[%clk 0:00:25.3]} 31. Rb7 {[%clk 0:01:18.7]} 31... f5 {[%clk 0:00:16.4]}
32. Rfb1 {[%clk 0:01:12.9]} 32... Kh7 {[%clk 0:00:10.3]} 33. g3 {[%clk
0:01:09.3]} 33... Ra8 {[%clk 0:00:09.8]} 34. Qf1 {[%clk 0:01:08.2]} 34... Ra2
{[%clk 0:00:10.3]} 35. R1b2 {[%clk 0:00:50.7]} 35... Qa3 {[%clk 0:00:09.2]} 36.
Rxa2 {[%clk 0:00:45.4]} 36... Qxa2 {[%clk 0:00:10.1]} 37. Rd7 {[%clk 0:00:41.2]}
37... Qb3 {[%clk 0:00:08.3]} 38. h4 {[%clk 0:00:36.6]} 38... Rg4 {[%clk
0:00:08.7]} 39. Nh5 {[%clk 0:00:35]} 39... Kh8 {[%clk 0:00:07.9]} 40. Qa6 {[%clk
0:00:32.3]} 40... Qd1+ {[%clk 0:00:07.3]} 41. Kh2 {[%clk 0:00:31.4]} 41... Bg8
{[%clk 0:00:07.4]} 42. Nf4 {[%clk 0:00:21.2]} 42... Qf3 {[%clk 0:00:05.7]} 43.
Qe2 {[%clk 0:00:20.7]} 43... Rxf4 {[%clk 0:00:04.9]} 44. Qxf3 {[%clk 0:00:17.6]}
44... Rxf3 {[%clk 0:00:05.8]} 45. Kg2 {[%clk 0:00:18]} 45... Bd5 {[%clk
0:00:06.1]} 46. h5 {[%clk 0:00:10.2]} 46... f4 {[%clk 0:00:06.3]} 47. gxf4
{[%clk 0:00:09.2]} 47... Kh7 {[%clk 0:00:05.6]} 48. Rc7 {[%clk 0:00:09]} 48...
Kg8 {[%clk 0:00:03.7]} 49. Ra7 {[%clk 0:00:08.5]} 49... Bf7 {[%clk 0:00:04]} 50.
Rc7 {[%clk 0:00:08.2]} 50... Bd5 {[%clk 0:00:04.3]} 51. Ra7 {[%clk 0:00:08.3]}
51... Kh7 {[%clk 0:00:04.7]} 52. Rc7 {[%clk 0:00:08.6]} 52... Kh8 {[%clk
0:00:05]} 53. Ra7 {[%clk 0:00:08.7]} 53... Kg8 {[%clk 0:00:04.5]} 54. Rc7 {[%clk
0:00:08.3]} 54... Kf8 {[%clk 0:00:04.9]} 55. Ra7 {[%clk 0:00:08.3]} 55... Bf7
{[%clk 0:00:05.2]} 56. Rc7 {[%clk 0:00:08.2]} 56... Bxh5 {[%clk 0:00:05.6]} 57.
Rxc6 {[%clk 0:00:08.5]} 57... Bg4 {[%clk 0:00:06.2]} 58. Rc7 {[%clk 0:00:07.9]}
58... Rh3 {[%clk 0:00:06.3]} 59. d5 {[%clk 0:00:07.8]} 59... Rh5 {[%clk
0:00:06.6]} 60. Kg3 {[%clk 0:00:05.6]} 60... Bf3 {[%clk 0:00:06]} 61. Rd7 {[%clk
0:00:05.1]} 61... g5 {[%clk 0:00:04.3]} 62. f5 {[%clk 0:00:04.5]} 62... g4
{[%clk 0:00:03.4]} 63. f6 {[%clk 0:00:04.4]} 63... Rf5 {[%clk 0:00:02.8]} 64.
Rd6 {[%clk 0:00:04.2]} 64... h5 {[%clk 0:00:03.2]} 65. Kh4 {[%clk 0:00:04.3]}
65... Kf7 {[%clk 0:00:03.7]} 66. Ra6 {[%clk 0:00:03.7]} 66... Rxd5 {[%clk
0:00:04]} 67. Ra7+ {[%clk 0:00:03.1]} 67... Kxf6 {[%clk 0:00:04.3]} 68. Ra6+
{[%clk 0:00:04]} 68... Ke7 {[%clk 0:00:04.3]} 69. Ra7+ {[%clk 0:00:04.3]} 69...
Ke6 {[%clk 0:00:04.5]} 70. Ra6+ {[%clk 0:00:05]} 70... Rd6 {[%clk 0:00:05.1]}
71. Ra5 {[%clk 0:00:05.6]} 71... Rd2 {[%clk 0:00:05.4]} 72. Kg3 {[%clk
0:00:05.4]} 72... h4+ {[%clk 0:00:04.9]} 73. Kxh4 {[%clk 0:00:05.7]} 73... Rxf2
{[%clk 0:00:05.7]} 74. Kg3 {[%clk 0:00:06.4]} 74... Re2 {[%clk 0:00:06]} 75. Kf4
{[%clk 0:00:06.8]} 75... Kd6 {[%clk 0:00:06.5]} 76. Rg5 {[%clk 0:00:07.1]} 76...
Kc6 {[%clk 0:00:06.1]} 77. Rg6+ {[%clk 0:00:07.7]} 77... Kc5 {[%clk 0:00:06.3]}
78. Rg8 {[%clk 0:00:08]} 78... Kc4 {[%clk 0:00:06.9]} 79. Rd8 {[%clk 0:00:08.4]}
79... Kc3 {[%clk 0:00:07.5]} 80. Rd7 {[%clk 0:00:08]} 80... Rd2 {[%clk
0:00:08.1]} 81. Rc7+ {[%clk 0:00:07.2]} 81... Kd3 {[%clk 0:00:08.6]} 82. Ra7
{[%clk 0:00:07.3]} 82... Ke2 {[%clk 0:00:09.2]} 83. Ra3 {[%clk 0:00:07.8]} 83...
Kf2 {[%clk 0:00:09.5]} 84. Rb3 {[%clk 0:00:07.7]} 84... g3 {[%clk 0:00:10]} 85.
Rb1 {[%clk 0:00:07.5]} 85... g2 {[%clk 0:00:10.7]} 86. Ra1 {[%clk 0:00:07.2]}
86... g1=Q {[%clk 0:00:11.1]} 87. Rxg1 {[%clk 0:00:06]} 87... Kxg1 {[%clk
0:00:12]} 88. Kg3 {[%clk 0:00:05]} 88... Rg2+ {[%clk 0:00:11.6]} 89. Kf4 {[%clk
0:00:05.3]} 89... Kf2 {[%clk 0:00:12.3]} 0-1